fUSD/lending_fUSD_20240407
["ID","MTS","AMOUNT","RATE_DAILY","PERIOD"]
[321795191,1712514637671,-151.24318121,0.0002,2]
[321795192,1712514637683,-652.27,0.00020158,2]
[321795193,1712514637695,-499.99,0.00020327,2]
[321795194,1712514637707,-186.93,0.00020327,2]
[321795195,1712514637719,-23288.6970054,0.00020499,2]
[321795196,1712514637730,-8196.64058422,0.000205,2]
[321795197,1712514637740,-213.62,0.000205,7]
[321795198,1712514637751,-150.0,0.000205,2]
[321795199,1712514637761,-773.0,0.00020548,2]
[321795200,1712514637772,-545.0,0.00020548,2]
[321795201,1712514637782,-544.0,0.00020548,2]
[321795202,1712514637796,-186.93,0.00020674,2]
[321795203,1712514637806,-250.95098069,0.00020788,2]
[321795204,1712514637816,-1061.6098,0.00020799,2]
[321795205,1712514637825,-6484.2589,0.00020799,2]
[321795206,1712514637835,-5800.0,0.000208,2]
[321795207,1712514637845,-905.33394149,0.000208,2]
[321795208,1712514637854,-7898.82724047,0.000208,2]
[321795209,1712514637864,-216.76851462,0.000208,2]
[321795210,1712514637874,-905.33394148,0.00020811,2]
[321795211,1712514637885,-7898.82724045,0.00020811,2]
[321795212,1712514637894,-216.76851459,0.00020814,2]
[321795213,1712514637905,-905.33394148,0.00020822,2]
[321795214,1712514637915,-7898.82724045,0.00020822,2]
[321795215,1712514637927,-216.76851459,0.00020829,2]
[321795216,1712514637936,-905.33394148,0.00020833,2]
[321795217,1712514637945,-7898.82724045,0.00020833,2]
[321795218,1712514637955,-216.76851459,0.00020843,2]
[321795219,1712514637964,-905.33394148,0.00020844,2]
[321795220,1712514637974,-7898.82724045,0.00020844,2]
[321795221,1712514637984,-905.33394148,0.00020856,2]
[321795222,1712514637993,-7898.82724045,0.00020856,2]
[321795223,1712514638003,-216.76851459,0.00020857,2]
[321795224,1712514638013,-905.33394148,0.00020867,2]
[321795225,1712514638022,-7898.82724045,0.00020867,2]
[321795226,1712514638031,-216.76851459,0.00020871,2]
[321795227,1712514638045,-905.33394148,0.00020878,2]
[321795228,1712514638056,-7898.82724045,0.00020878,2]
[321795229,1712514638065,-216.76851459,0.00020886,2]
[321795230,1712514638075,-905.33394148,0.00020889,2]
[321795231,1712514638084,-7898.82724045,0.00020889,2]
[321795232,1712514638094,-9459.79919685,0.00020898,2]
[321795233,1712514638104,-245000.0,0.00020899,2]
[321795234,1712514638113,-10000.0,0.000209,2]
[321795235,1712514638122,-1000.0,0.000209,2]
[321795236,1712514638131,-186.40704061,0.000209,2]
[321795237,1712514638141,-905.33394148,0.000209,2]
[321795238,1712514638150,-2106.68709546,0.000209,2]
[321795239,1712514638159,-6262.46531306,0.000209,3]
[321795240,1712514638168,-7898.82724045,0.000209,2]
[321795241,1712514638177,-216.76851459,0.000209,2]
[321795242,1712514638187,-158.36833835,0.00020997,2]
[321795243,1712514638197,-236.07179725,0.00020997,2]
[321795244,1712514638206,-1324.6513758,0.00020997,2]
[321795245,1712514638215,-808.90934401,0.00020997,2]
[321795246,1712514638224,-210.0107731,0.00020997,2]
[321795247,1712514638234,-156.79881573,0.00020997,2]
[321795248,1712514638244,-295.82060124,0.00020997,2]
[321795249,1712514638254,-500.0,0.00020997,2]
[321795250,1712514638263,-155.49200959,0.00020997,2]
[321795251,1712514638272,-155.0,0.00020997,2]
[321795252,1712514638282,-228.39712251,0.00020997,2]
[321795253,1712514638295,-192.21755063,0.00020997,2]
[321795254,1712514638304,-2173.34818369,0.00020997,2]
[321795255,1712514638314,-4465.1280569,0.00020997,2]
[321795256,1712514638323,-155.0,0.00020997,2]
[321795257,1712514638332,-304.46832005,0.00020997,2]
[321795258,1712514638342,-2348.97634667,0.00020997,2]
[321795259,1712514638351,-155.0,0.00020998,2]
[321795260,1712514638360,-207.17268662,0.00020998,2]
[321795261,1712514638370,-779.36919387,0.00020998,2]
[321795262,1712514638381,-164.01340579,0.00020998,2]
[321795263,1712514638390,-1993.2754672,0.00020998,2]
[321795264,1712514638399,-419382.72048351,0.00020999,2]
[321795265,1712514638409,-221.29572605,0.00020999,2]
[321795266,1712514638419,-348.90376104,0.00020999,2]
[321795267,1712514638428,-1672645.88138713,0.00020999,2]
[321795268,1712514638438,-19539301.08085056,0.00021,2]
[321795269,1712514638736,-18318417.0586323,0.00021,2]
[321795270,1712514638748,-235167.79639688,0.00021,2]
[321795271,1712514638759,-1624.20869898,0.00021,2]
[321795272,1712514639138,-343.50000001,0.00021,2]
[321795273,1712514639151,-385.38170658,0.00021,2]
[321795274,1712514639196,-19519.02156463,0.00021,2]
[321795275,1712514639207,-3067.39220113,0.00021,2]
[321795276,1712514639218,-27314.0650086,0.00021,2]
[321795277,1712514639229,-2135.28337387,0.00021,2]
[321795280,1712514639723,-405.43853958,0.00021,2]
[321795281,1712514639734,-2434.91,0.00021,2]
[321795282,1712514639755,-579.85,0.00021,2]
[321795283,1712514639766,-20242.22079085,0.00021,2]
[321795284,1712514639827,-135091.19113384,0.00021,2]
[321795285,1712514639884,-480.19641423,0.00021,2]
[321795286,1712514639897,-774.1338722,0.00021,2]
[321795287,1712514639910,-953.56826015,0.00021,2]
[321795299,1712514642518,-1570.94677359,0.00021,2]
[321795306,1712514645511,-8e-08,0.000209,2]
[321795307,1712514645711,-2041.62715847,0.0001952,2]
[321795308,1712514645722,-971.18004153,0.0001952,2]
[321795309,1712514645732,-199.20521119,0.000209,2]
[321795310,1712514645742,-682.38593014,0.00020999,2]
[321795311,1712514645751,-461.98881714,0.00021,2]
[321795319,1712514783553,150.5,0.0002099,15]
[321795320,1712514784306,150.5,0.0002098,15]
[321795321,1712514784508,150.5,0.0002097,15]
[321795323,1712515075304,-354.86811609,0.00019999,2]
[321795324,1712515076449,1845.13188391,0.00019998,2]
[321795325,1712515086932,587.04,0.00017994,2]
[321795334,1712515306927,-2354.34089257,0.00019945,2]
[321795335,1712515306952,-500.0,0.00019946,2]
[321795336,1712515306976,-327.49,0.00019972,2]
[321795337,1712515307000,-322.67,0.00019972,2]
[321795338,1712515307026,-3495.49910743,0.0001999,2]
[321795340,1712515370960,217.53997167,0.0001,2]
[321795341,1712515545103,574.17,0.00017901,2]
[321795342,1712515557365,-966.53,0.00019824,2]
[321795343,1712515557388,-228.26,0.00019928,2]
[321795344,1712515557408,-416.0,0.00019928,2]
[321795345,1712515557431,-309.25089257,0.0001999,2]
[321795346,1712515557451,-584.0,0.00020001,2]
[321795347,1712515557472,-458.07,0.00020072,2]
[321795348,1712515557493,-150.0,0.00020164,2]
[321795349,1712515557512,-574.17,0.00020165,2]
[321795350,1712515557532,-163.24,0.00020183,2]
[321795351,1712515557554,-173.34,0.00020191,2]
[321795352,1712515557573,-150.0,0.000205,2]
[321795353,1712515557591,-250.89815982,0.00020589,2]
[321795354,1712515557610,-499.99,0.00020589,2]
[321795355,1712515557629,-150.0,0.00020613,2]
[321795356,1712515557648,-155.66951737,0.00020699,2]
[321795357,1712515557668,-196.20649436,0.00020732,2]
[321795358,1712515557688,-150.0,0.00020751,2]
[321795359,1712515557708,-150.0,0.00020771,2]
[321795360,1712515557727,-159.5705934,0.00020773,2]
[321795361,1712515599182,347.0,0.0003,28]
[321795362,1712515608261,-150.0,0.000205,2]
[321795363,1712515608285,-280.34011796,0.00020773,2]
[321795364,1712515640297,-168.44,0.0002007,2]
[321795365,1712515640318,-1000.0,0.0002047,2]
[321795366,1712515640341,-2265.3902381,0.00020773,2]
[321795367,1712515643233,-219.97125257,0.00020773,2]
[321795368,1712515750089,-161.33,0.00019915,2]
[321795369,1712515750110,-600.0,0.000202,7]
[321795370,1712515750132,-70.30122885,0.00020699,2]
[321795384,1712515831658,-500.0,0.00019756,2]
[321795385,1712515831669,-207.20082134,0.00019757,2]
[321795386,1712515831681,-75.44812873,0.00019757,2]
[321795387,1712515831691,-217.99,0.00019823,2]
[321795388,1712515831701,-447.53187127,0.000203,7]
[321795389,1712515831714,-852.46812873,0.000203,7]
[321795390,1712515831724,-1900.0,0.000204,7]
[321795391,1712515831733,-2550.88795517,0.000205,7]
[321795392,1712515832527,-49.11204483,0.000205,7]
[321795393,1712515832538,-256.90979463,0.00020548,2]
[321795394,1712515832550,-526.09020537,0.00020548,2]
[321795395,1712515832559,-1688.08803601,0.000206,7]
[321795396,1712515832571,-363.76455997,0.000206,7]
[321795397,1712515832639,-1148.14740402,0.000206,7]
[321795398,1712515832648,-38.70665598,0.00020601,2]
[321795399,1712515832660,-937.09830732,0.00020601,2]
[321795400,1712515832669,-106.28461611,0.00020699,2]
[321795401,1712515832678,-600.0,0.000207,7]
[321795402,1712515832688,-531.55753269,0.00020772,2]
[321795403,1712515832698,-150.99,0.00020772,2]
[321795404,1712515832709,-207.28333438,0.00020773,2]
[321795405,1712515832757,-4e-08,0.00020773,2]
[321795406,1712515832769,-3470.05,0.00020773,2]
[321795407,1712515832797,-2997.08030588,0.00020773,2]
[321795408,1712515832809,-10141.9403479,0.00020773,2]
[321795409,1712515832818,-318.49126911,0.00020773,2]
[321795410,1712515832828,-150.0,0.00020778,2]
[321795411,1712515832837,-150.0,0.00020792,2]
[321795412,1712515832847,-2173.34818369,0.00020797,2]
[321795413,1712515832857,-1242.94653357,0.00020797,2]
[321795415,1712515832866,-304.46832005,0.00020797,2]
[321795417,1712515832876,-199.74361967,0.00020797,2]
[321795418,1712515832885,-210.0107731,0.00020797,2]
[321795420,1712515832895,-180.65093976,0.00020797,2]
[321795422,1712515832904,-312.54704425,0.00020797,2]
[321795423,1712515832914,-261.54416179,0.00020797,2]
[321795424,1712515832923,-512.69131458,0.00020797,2]
[321795425,1712515832932,-199.49457765,0.00020797,2]
[321795426,1712515832941,-233.87110776,0.00020797,2]
[321795427,1712515832951,-234.00733187,0.00020797,2]
[321795428,1712515832960,-709.82548608,0.00020797,2]
[321795429,1712515832969,-155.33339114,0.00020797,2]
[321795430,1712515832977,-1619.37595836,0.00020797,2]
[321795431,1712515832987,-604.52248845,0.00020797,2]
[321795432,1712515832997,-150.0,0.00020797,2]
[321795433,1712515833006,-4465.1280569,0.00020798,2]
[321795434,1712515833016,-440.60759322,0.00020798,2]
[321795435,1712515833025,-1000.0,0.00020799,2]
[321795436,1712515833034,-7558.21871388,0.00020799,2]
[321795437,1712515833055,-1476.94465062,0.00020799,2]
[321795442,1712515837884,-3899.24688022,0.00020799,2]
[321795443,1712515837927,-47076.96604544,0.00020799,2]
[321795444,1712515837940,-32390.46660017,0.00020799,2]
[321795445,1712515837965,-1386.61,0.00020799,2]
[321795446,1712515837977,-891.2000002,0.00020799,2]
[321795447,1712515837990,-706.60721973,0.00020799,2]
[321795448,1712515838003,-3988.50846,0.00020799,2]
[321795449,1712515838016,-2312.19029328,0.00020799,2]
[321795450,1712515838029,-110256.40323646,0.00020799,2]
[321795451,1712515838038,-150.0,0.00020799,2]
[321795452,1712515838047,-2201.79,0.00020799,2]
[321795453,1712515838056,-499.99,0.00020799,2]
[321795454,1712515838065,-600.0,0.000208,7]
[321795455,1712515838075,-150.0,0.00020803,2]
[321795456,1712515838084,-150.0,0.00020811,2]
[321795457,1712515838093,-341.716108,0.00020822,2]
[321795458,1712515838103,-500.0,0.00020832,2]
[321795460,1712515838112,-150.0,0.00020837,2]
[321795461,1712515838121,-150.0,0.00020846,2]
[321795462,1712515838130,-176.58584492,0.0002085,2]
[321795463,1712515838138,-150.0,0.00020868,2]
[321795464,1712515838147,-150.0,0.00020889,2]
[321795465,1712515838156,-7500.0,0.00020899,2]
[321795466,1712515838165,-223.00979816,0.00020899,2]
[321795468,1712515838174,-5696.1704,0.000209,2]
[321795470,1712515838183,-1000.0,0.000209,2]
[321795472,1712515838191,-600.0,0.000209,7]
[321795474,1712515838200,-150.0,0.00020904,2]
[321795475,1712515838209,-150.0,0.0002091,2]
[321795476,1712515838218,-150.0,0.00020918,2]
[321795477,1712515838227,-150.0,0.0002092,2]
[321795478,1712515838236,-150.0,0.00020929,2]
[321795480,1712515838245,-150.0,0.00020933,2]
[321795482,1712515838256,-150.0,0.00020939,2]
[321795484,1712515838268,-150.0,0.00020967,2]
[321795486,1712515838277,-150.0,0.00020975,2]
[321795488,1712515838286,-150.0,0.00020975,2]
[321795489,1712515838296,-150.0,0.00020981,2]
[321795491,1712515838306,-3620.0,0.00020986,2]
[321795493,1712515838315,-14979.0,0.00020986,2]
[321795495,1712515838325,-150.0,0.00020987,2]
[321795496,1712515838335,-198.70729204,0.00020989,2]
[321795497,1712515838344,-150.0,0.00020994,2]
[321795498,1712515838355,-150.0,0.00020997,2]
[321795499,1712515838366,-1210.30084464,0.00020999,2]
[321795500,1712515838376,-379.30218024,0.00020999,2]
[321795501,1712515838386,-82034.82069242,0.00020999,2]
[321795502,1712515838404,-265.398,0.00020999,2]
[321795503,1712515838417,-12228.2676261,0.00020999,2]
[321795504,1712515838549,-725.51031209,0.00020999,2]
[321795505,1712515838560,-657.76259654,0.00020999,2]
[321795506,1712515838804,-1576734.12215998,0.00020999,2]
[321795507,1712515838814,-391814.86012512,0.00021,2]
[321795508,1712515838823,-221.29572604,0.00021,2]
[321795509,1712515838833,-5724201.74251144,0.00021,2]
[321795510,1712515838845,-392.83190755,0.00021,2]
[321795511,1712515838856,-292.43950575,0.00021,2]
[321795512,1712515838872,-443.83778674,0.00021,2]
[321795514,1712515839891,-925.27528567,0.00021,2]
[321795515,1712515839903,-1250.21850921,0.00021,2]
[321795516,1712515840002,-14507.77920915,0.00021,2]
[321795522,1712515842642,-402777.35908291,0.00021,2]
[321795523,1712515842812,-1944.55300005,0.00021,2]
[321795524,1712515842872,-1180622.15746576,0.00021,2]
[321795525,1712515842983,-10779.990216,0.00021,2]
[321795526,1712515843042,-478997.59262306,0.00021,2]
[321795552,1712515846637,-3466.72115999,0.00021,2]
[321795553,1712515862294,748.22929307,0.00018898,2]
[321795554,1712515863255,150.5,0.0002099,15]
[321795555,1712515865067,150.5,0.0002098,15]
[321795556,1712515865311,150.5,0.0002097,15]
[321795557,1712515918599,522.0,0.00027,30]
[321795558,1712515945662,480.17809027,0.000285,120]
[321795559,1712515966321,182.17,0.0001609,2]
[321795560,1712515983103,231.0,0.00020989,15]
[321795561,1712515983302,150.5,0.00020989,15]
[321795562,1712515983584,231.0,0.00020979,15]
[321795563,1712515983765,150.5,0.00020979,15]
[321795564,1712515984108,231.0,0.00020969,15]
[321795565,1712515984244,150.5,0.00020969,15]
[321795566,1712515984551,231.0,0.00020989,15]
[321795567,1712515985013,150.5,0.00020989,15]
[321795568,1712515985045,150.5,0.00020989,15]
[321795569,1712515985126,231.0,0.00020979,15]
[321795570,1712515985232,298.0,0.00020979,15]
[321795571,1712515985273,150.5,0.00020979,15]
[321795572,1712515985514,231.0,0.00020969,15]
[321795573,1712515985817,150.5,0.00020969,15]
[321795574,1712515985980,231.0,0.00020989,15]
[321795575,1712515986274,150.5,0.00020989,15]
[321795576,1712515986465,231.0,0.00020979,15]
[321795577,1712515986768,150.5,0.00020979,15]
[321795578,1712515986932,231.0,0.00020989,15]
[321795579,1712515987241,245.0,0.00020969,15]
[321795580,1712515987416,235.5,0.00020979,15]
[321795581,1712516070204,231.85,0.00024911,120]
[321795582,1712516070429,231.85,0.00027402,120]
[321795583,1712516070627,231.85,0.00029893,120]
[321795585,1712516209667,191.98,0.00016712,2]
[321795586,1712516417407,-500.0,0.00018219,2]
[321795587,1712516417432,-597.27,0.0001822,2]
[321795588,1712516417460,-1702.73,0.00019,3]
[321795589,1712516478279,567.4,0.00017893,2]
[321795591,1712516814170,-47.27,0.00019,3]
[321795592,1712516814192,-161.33262702,0.00019556,2]
[321795593,1712516814214,-224.96160104,0.00019752,2]
[321795594,1712516828099,-458.73851258,0.00019752,2]
[321795619,1712517031903,-318.64159543,0.00019753,2]
[321795621,1712517031914,-411.01908158,0.00019753,2]
[321795623,1712517032894,-101.96932299,0.00019753,2]
[321795624,1712517032904,-267.61,0.00019757,2]
[321795625,1712517032913,-161.33,0.00019759,2]
[321795626,1712517032923,-200.0,0.0001978,2]
[321795627,1712517032932,-1000.0,0.00019787,2]
[321795628,1712517032941,-216.99,0.00019802,2]
[321795629,1712517032951,-164.44,0.00019907,2]
[321795630,1712517032960,-231.85,0.00019928,2]
[321795631,1712517032970,-405.65527523,0.0002,2]
[321795632,1712517032997,-898.12758126,0.0002,2]
[321795633,1712517033009,-345.12139171,0.0002,2]
[321795634,1712517033018,-499.99,0.0002,2]
[321795635,1712517033028,-567.4,0.00020156,2]
[321795636,1712517033038,-167.59,0.00020397,2]
[321795637,1712517033047,-905.99,0.000204,2]
[321795638,1712517033057,-164.44,0.00020425,2]
[321795639,1712517033067,-150.0,0.000205,2]
[321795640,1712517033077,-546.0,0.0002052,2]
[321795641,1712517033087,-119.91860829,0.0002052,2]
[321795642,1712517033114,-424.08139171,0.0002052,2]
[321795643,1712517033123,-485.48424875,0.00020582,5]
[321795644,1712517033134,-820.60575125,0.00020582,5]
[321795645,1712517033144,-11018.69444875,0.00020582,5]
[321795648,1712517037914,-3160.63397273,0.00020582,5]
[321795649,1712517037969,-27544.33157852,0.00020582,5]
[321795650,1712517037979,-56952.71,0.00020582,5]
[321795651,1712517037989,-26082.78,0.00020698,5]
[321795652,1712517037998,-6183.79,0.00020698,5]
[321795653,1712517038007,-75484.41,0.00020698,5]
[321795654,1712517038016,-3864.9508,0.00020699,2]
[321795655,1712517038027,-744.35381165,0.00020699,2]
[321795656,1712517038036,-164.55,0.00020772,2]
[321795657,1712517038045,-203.97211555,0.0002079,2]
[321795658,1712517038054,-192.1189982,0.000208,2]
[321795659,1712517038063,-116103.91693055,0.000208,2]
[321795660,1712517038072,-3649.42800146,0.000208,2]
[321795661,1712517038082,-2066.7247,0.000208,2]
[321795662,1712517038091,-998.82934028,0.000208,2]
[321795663,1712517038100,-1736.73,0.000208,2]
[321795664,1712517038110,-185.48338157,0.000208,2]
[321795665,1712517038119,-153.07181581,0.000208,2]
[321795666,1712517038128,-193.36619269,0.000208,2]
[321795667,1712517038137,-153.07181571,0.00020808,2]
[321795668,1712517038146,-3649.42800139,0.00020809,2]
[321795669,1712517038156,-998.82934022,0.00020814,2]
[321795670,1712517038166,-153.07181571,0.00020815,2]
[321795671,1712517038175,-3649.42800139,0.00020818,2]
[321795672,1712517038184,-150.0,0.00020822,2]
[321795673,1712517038193,-251.01,0.00020822,2]
[321795674,1712517038202,-150.49,0.00020822,2]
[321795675,1712517038211,-162.01,0.00020822,2]
[321795676,1712517038220,-153.07181571,0.00020823,2]
[321795677,1712517038230,-3649.42800139,0.00020827,2]
[321795678,1712517038240,-998.82934022,0.00020829,2]
[321795680,1712517038249,-153.07181571,0.00020831,2]
[321795682,1712517038258,-800.0,0.00020832,2]
[321795684,1712517038268,-500.0,0.00020832,2]
[321795686,1712517038278,-3649.42800139,0.00020836,2]
[321795688,1712517038287,-153.07181571,0.00020838,2]
[321795689,1712517038295,-998.82934022,0.00020843,2]
[321795691,1712517038305,-3649.42800139,0.00020845,2]
[321795693,1712517038314,-153.07181571,0.00020846,2]
[321795695,1712517038323,-153.07181571,0.00020854,2]
[321795696,1712517038333,-3649.42800139,0.00020855,2]
[321795697,1712517038342,-998.82934022,0.00020857,2]
[321795698,1712517038352,-153.07181571,0.00020862,2]
[321795699,1712517038363,-3649.42800139,0.00020864,2]
[321795701,1712517038373,-153.07181571,0.00020869,2]
[321795703,1712517038382,-998.82934022,0.00020871,2]
[321795704,1712517038391,-3649.42800139,0.00020873,2]
[321795705,1712517038400,-156.96519548,0.00020875,2]
[321795706,1712517038409,-153.07181571,0.00020877,2]
[321795707,1712517038418,-3649.42800139,0.00020882,2]
[321795708,1712517038428,-153.07181571,0.00020885,2]
[321795709,1712517038438,-998.82934022,0.00020886,2]
[321795710,1712517038448,-3649.42800139,0.00020891,2]
[321795711,1712517038458,-153.07181571,0.00020892,2]
[321795712,1712517038467,-500.0,0.00020898,2]
[321795713,1712517038476,-3373.51114999,0.00020898,2]
[321795714,1712517038486,-208.36901039,0.00020899,2]
[321795715,1712517038496,-527.0,0.000209,2]
[321795716,1712517038730,-1206811.83714437,0.000209,2]
[321795717,1712517038747,-172.6210039,0.000209,2]
[321795718,1712517038758,-3912.1728,0.000209,2]
[321795719,1712517038768,-1000.0,0.000209,2]
[321795720,1712517038778,-192.1189982,0.000209,2]
[321795721,1712517038788,-3649.42800139,0.000209,2]
[321795722,1712517038800,-998.82934022,0.000209,2]
[321795723,1712517038809,-185.48338156,0.000209,2]
[321795724,1712517038818,-156.96519548,0.000209,2]
[321795725,1712517038828,-153.07181571,0.000209,2]
[321795726,1712517038837,-155.67065173,0.00020936,2]
[321795727,1712517038847,-2623.11283136,0.00020936,2]
[321795728,1712517038856,-350.68219896,0.00020936,2]
[321795729,1712517038866,-873.65591395,0.00020936,2]
[321795730,1712517038875,-164.44,0.00020944,2]
[321795731,1712517038885,-10344.0980068,0.00020991,2]
[321795732,1712517038894,-84290.5405514,0.00020991,2]
[321795733,1712517038903,-787.25010372,0.00020998,2]
[321795734,1712517038913,-352904.30358359,0.00020999,2]
[321795735,1712517038922,-721.97070608,0.00020999,5]
[321795736,1712517038931,-1672645.88138713,0.00020999,2]
[321795737,1712517038940,-1444.03728542,0.00020999,2]
[321795738,1712517038950,-4539839.25909458,0.00021,2]
[321795739,1712517038959,-500.0,0.00021,2]
[321795740,1712517038969,-500.0,0.00021,2]
[321795741,1712517038978,-200.0,0.00021,2]
[321795742,1712517038988,-500.0,0.00021,2]
[321795743,1712517038998,-500.0,0.00021,2]
[321795744,1712517039007,-500.0,0.00021,2]
[321795745,1712517039017,-500.0,0.00021,2]
[321795746,1712517039026,-500.0,0.00021,2]
[321795747,1712517039035,-500.0,0.00021,2]
[321795748,1712517039045,-200.0,0.00021,2]
[321795749,1712517039054,-500.0,0.00021,2]
[321795750,1712517039064,-500.0,0.00021,2]
[321795751,1712517039073,-500.0,0.00021,2]
[321795752,1712517039082,-200.0,0.00021,2]
[321795753,1712517039092,-500.0,0.00021,2]
[321795754,1712517039102,-500.0,0.00021,2]
[321795755,1712517039111,-200.0,0.00021,2]
[321795756,1712517039121,-500.0,0.00021,2]
[321795757,1712517039130,-500.0,0.00021,2]
[321795758,1712517039140,-200.0,0.00021,2]
[321795759,1712517039149,-500.0,0.00021,2]
[321795760,1712517039159,-500.0,0.00021,2]
[321795761,1712517039170,-500.0,0.00021,2]
[321795762,1712517039180,-200.0,0.00021,2]
[321795763,1712517039189,-500.0,0.00021,2]
[321795764,1712517039200,-554.0,0.00021,2]
[321795765,1712517039210,-500.0,0.00021,2]
[321795766,1712517039220,-500.0,0.00021,2]
[321795767,1712517039230,-200.0,0.00021,2]
[321795768,1712517039241,-770.0,0.00021,2]
[321795769,1712517039252,-500.0,0.00021,2]
[321795770,1712517039262,-200.0,0.00021,2]
[321795771,1712517039273,-500.0,0.00021,2]
[321795772,1712517039284,-200.0,0.00021,2]
[321795773,1712517039294,-500.0,0.00021,2]
[321795774,1712517039303,-200.0,0.00021,2]
[321795775,1712517039314,-500.0,0.00021,2]
[321795776,1712517039325,-500.0,0.00021,2]
[321795777,1712517039337,-200.0,0.00021,2]
[321795778,1712517039347,-500.0,0.00021,2]
[321795779,1712517039358,-200.0,0.00021,2]
[321795780,1712517039369,-500.0,0.00021,2]
[321795781,1712517039380,-200.0,0.00021,2]
[321795782,1712517039391,-369.0,0.00021,2]
[321795783,1712517039402,-500.0,0.00021,2]
[321795784,1712517039412,-500.0,0.00021,2]
[321795785,1712517039423,-500.0,0.00021,2]
[321795786,1712517039433,-500.0,0.00021,2]
[321795787,1712517039445,-753.0,0.00021,2]
[321795788,1712517039456,-500.0,0.00021,2]
[321795789,1712517039466,-2875.86637624,0.00021,2]
[321795790,1712517039475,-14688769.99574533,0.00021,2]
[321795791,1712517039491,-3981731.20792589,0.00021,2]
[321795792,1712517039501,-57079.86146216,0.00021,2]
[321795793,1712517039511,-1573.82,0.00021,2]
[321795794,1712517039521,-2055.16,0.00021,2]
[321795795,1712517039530,-14275977.00924425,0.00021,2]
[321795796,1712517039542,-838.51745511,0.00021,2]
[321795798,1712517039661,-565.30282003,0.00021,2]
[321795799,1712517040120,-6936.30000001,0.00021,2]
[321795800,1712517040131,-338.79383807,0.00021,2]
[321795801,1712517040146,-293.7,0.00021,2]
[321795802,1712517040191,-458.99421857,0.00021,2]
[321795803,1712517040228,-1228.54763919,0.00021,2]
[321795804,1712517040333,-326.83185218,0.00021,2]
[321795810,1712517043413,-538.0,0.00020548,2]
[321795811,1712517043423,-1444.03728541,0.00020999,2]
[321795812,1712517043432,-2004.10297297,0.00021,2]
[321795813,1712517043443,-3009.41140349,0.00021,2]
[321795814,1712517043484,-4852.78488986,0.00021,2]
[321795815,1712517043496,-5999.23799992,0.00021,2]
[321795816,1712517043508,-6009.99571247,0.00021,2]
[321795820,1712517045950,-695.10450917,0.00021,2]
[321795821,1712517046019,-1658.95034927,0.00021,2]
[321795822,1712517315924,2725.75685668,0.0003,28]
[321795826,1712517411027,-500.0,0.00018196,2]
[321795828,1712517453562,-4969.004147,0.00018103,2]
[321795829,1712517453588,-14030.995853,0.00018195,2]
[321795831,1712517477989,-1845.13188391,0.00018194,2]
[321795832,1712517478013,-3154.86811609,0.00018195,2]
[321795833,1712517489728,-2201.02303631,0.00018195,2]
[321795834,1712517489758,-47.82,0.00018196,2]
[321795835,1712517489788,-2130.70558282,0.00018196,2]
[321795836,1712517489815,-4620.45138087,0.00018196,2]
[321795837,1712517508628,1000.0,0.0003,28]
[321795838,1712517547366,-835.35974896,0.00018196,2]
[321795839,1712517547391,-1914.64025104,0.00018196,2]
[321795840,1712517721924,520.42,0.00017885,2]
[321795847,1712518034875,-600.0,0.00031,32]
[321795848,1712518034895,-1000.0,0.00031,120]
[321795849,1712518050158,-85.35974896,0.00018196,2]
[321795850,1712518050178,-650.69,0.00019686,2]
[321795851,1712518050198,-548.99260522,0.00019694,2]